bitfinex-derivatives/quotes_BTCF0:USTF0_20241214
["timestamp","ask_amount","ask_price","bid_price","bid_amount"]
[1734180505993,0.37278729,101450.0,101440.0,0.29646516]
[1734180506590,0.37278729,101450.0,101440.0,2.15726516]
[1734180506893,0.37278729,101450.0,101440.0,1.79646516]
[1734180507097,0.37278729,101450.0,101440.0,0.29646516]
[1734180507688,0.37278729,101450.0,101440.0,1.79646516]
[1734180508088,0.37278729,101450.0,101440.0,2.15726516]
[1734180508294,0.37278729,101450.0,101440.0,2.33473784]
[1734180509292,0.22574644,101450.0,101440.0,1.97393784]
[1734180510493,0.22574644,101450.0,101440.0,2.33473784]
[1734180510685,0.372818,101450.0,101440.0,2.33473784]
[1734180510888,0.372818,101450.0,101440.0,1.97393784]
[1734180511093,0.22574644,101450.0,101440.0,1.97393784]
[1734180512405,0.049287,101440.0,101430.0,0.59693611]
[1734180512696,0.33503922,101440.0,101430.0,0.65822519]
[1734180512893,0.70920336,101440.0,101420.0,0.77522376]
[1734180513093,0.70480015,101430.0,101420.0,0.17747268]
[1734180513394,0.70480015,101430.0,101410.0,1.67747268]
[1734180513395,0.049297,101420.0,101410.0,1.67747268]
[1734180513596,0.56142301,101420.0,101410.0,1.67747268]
[1734180513797,0.51348608,101420.0,101410.0,1.5]
[1734180514298,0.64041339,101420.0,101400.0,0.15407299]
[1734180514593,0.20509559,101410.0,101400.0,0.15407299]
[1734180514798,0.19614849,101410.0,101400.0,0.15407299]
[1734180515293,0.19614849,101410.0,101400.0,0.09278391]
[1734180515590,0.19721192,101410.0,101400.0,0.15407299]
[1734180516593,0.19721192,101410.0,101400.0,1.65407299]
[1734180516799,0.19721192,101410.0,101400.0,1.59278391]
[1734180516995,0.19721192,101410.0,101400.0,1.65407299]
[1734180517192,0.31451127,101410.0,101400.0,1.65407299]
[1734180518188,0.16766478,101410.0,101400.0,1.65407299]
[1734180520600,0.25555962,101410.0,101400.0,1.65407299]
[1734180520900,0.16766478,101410.0,101400.0,1.65407299]
[1734180521094,0.25555799,101410.0,101400.0,1.65407299]
[1734180521995,0.58975386,101410.0,101400.0,1.549305]
[1734180522195,0.76480711,101410.0,101400.0,1.549305]
[1734180522408,0.76480711,101410.0,101400.0,1.61059408]
[1734180522592,0.70351803,101410.0,101400.0,1.61059408]
[1734180522794,0.70351803,101410.0,101400.0,0.049305]
[1734180523094,0.70351803,101410.0,101400.0,0.11059408]
[1734180523295,0.70351803,101410.0,101400.0,1.61059408]
[1734180526600,0.56701603,101410.0,101400.0,1.61059408]
[1734180526804,0.56701603,101410.0,101400.0,1.65619408]
[1734180526991,0.56701603,101410.0,101400.0,1.65669408]
[1734180528107,0.56701603,101410.0,101400.0,1.65619408]
[1734180529102,0.56701603,101410.0,101400.0,1.65669408]
[1734180530097,0.56701603,101410.0,101400.0,1.595405]
[1734180530411,0.61631803,101410.0,101400.0,1.595405]
[1734180533407,0.67760711,101410.0,101400.0,1.595405]
[1734180533612,0.62830511,101410.0,101400.0,1.595405]
[1734180534212,0.56701603,101410.0,101400.0,1.65619408]
[1734180535310,0.62830511,101410.0,101400.0,1.65619408]
[1734180536207,0.54045186,101410.0,101400.0,1.65619408]
[1734180537208,0.54045186,101410.0,101400.0,1.594905]
[1734180537403,0.68729835,101410.0,101400.0,1.594905]
[1734180538110,0.73660035,101410.0,101400.0,1.594905]
[1734180538613,0.68729835,101410.0,101400.0,1.594905]
[1734180539014,0.11836278,101410.0,101400.0,2.01699408]
[1734180539311,0.26520927,101410.0,101400.0,2.06229408]
[1734180539912,0.26520927,101410.0,101400.0,1.70149408]
[1734180540109,0.14790992,101410.0,101400.0,1.70149408]
[1734180540611,0.19721192,101410.0,101400.0,1.640205]
[1734180541320,0.64867882,101410.0,101400.0,0.049305]
[1734180541508,0.37497882,101410.0,101400.0,0.049305]
[1734180541813,0.52184204,101410.0,101400.0,0.049305]
[1734180542202,0.37497882,101410.0,101400.0,0.049305]
[1734180543204,0.19875451,101410.0,101400.0,0.22677768]
[1734180543403,0.19875451,101410.0,101400.0,0.28806676]
[1734180543404,0.17769391,101410.0,101400.0,0.28806676]
[1734180543608,0.17769391,101410.0,101400.0,0.32966676]
[1734180544108,0.28828499,101410.0,101400.0,0.32966676]
[1734180544513,0.28828499,101410.0,101400.0,0.26837768]
[1734180545512,0.11165451,101410.0,101400.0,0.26837768]
[1734180550017,0.11165451,101410.0,101400.0,0.22677768]
[1734180550318,0.47245451,101410.0,101400.0,0.22677768]
[1734180550507,0.7652328,101410.0,101390.0,0.42327735]
[1734180550708,0.34435787,101400.0,101390.0,0.46323576]
[1734180550911,0.47139608,101400.0,101390.0,0.22678468]
[1734180551321,0.64802111,101400.0,101390.0,0.22678468]
[1734180551513,0.64908454,101400.0,101390.0,0.22678468]
[1734180554422,0.64908454,101400.0,101390.0,0.049312]
[1734180556625,0.75517362,101400.0,101390.0,0.049312]
[1734180556822,0.049312,101390.0,101380.0,2.06150797]
[1734180557017,0.4341936,101390.0,101380.0,1.82555689]
[1734180557325,0.70919517,101390.0,101380.0,0.04989215]
[1734180557535,0.73460609,101390.0,101380.0,0.04989215]
[1734180557827,0.73566952,101390.0,101380.0,0.04989215]
[1734180558125,0.73566952,101390.0,101380.0,0.04939215]
[1734180558322,0.7969586,101390.0,101380.0,0.04939215]
[1734180558622,0.73566952,101390.0,101380.0,0.04939215]
[1734180559020,0.73566952,101390.0,101380.0,0.04989215]
[1734180562131,0.88253852,101390.0,101380.0,0.04989215]
[1734180564322,0.82124944,101390.0,101380.0,0.04989215]
[1734180564522,0.88253852,101390.0,101380.0,0.04989215]
[1734180565017,0.70603351,101390.0,101380.0,0.04989215]
[1734180566131,0.70603351,101390.0,101380.0,0.04939215]
[1734180567629,0.88253852,101390.0,101380.0,0.04939215]
[1734180567934,0.88253852,101390.0,101380.0,8.015e-05]
[1734180568333,0.9438276,101390.0,101380.0,8.015e-05]
[1734180568632,0.7969586,101390.0,101380.0,8.015e-05]
[1734180569129,0.62045359,101390.0,101380.0,8.015e-05]
[1734180569925,0.79661692,101390.0,101380.0,8.015e-05]
[1734180570531,0.67403876,101390.0,101380.0,8.015e-05]
[1734180570729,0.79661692,101390.0,101380.0,8.015e-05]
[1734180571129,0.73532784,101390.0,101380.0,8.015e-05]
[1734180572432,0.79661692,101390.0,101380.0,8.015e-05]
[1734180573437,0.73532784,101390.0,101380.0,8.015e-05]
[1734180574038,0.55916451,101390.0,101380.0,8.015e-05]
[1734180574235,0.7651428,101390.0,101370.0,0.05874542]
[1734180574538,0.80310917,101380.0,101370.0,0.05874542]
[1734180574735,0.79527814,101380.0,101370.0,0.05874542]
[1734180574928,0.61920016,101380.0,101370.0,0.05874542]
[1734180575227,0.79535829,101380.0,101370.0,0.05924542]
[1734180576032,0.79535829,101380.0,101370.0,0.05874542]
[1734180577137,0.79535829,101380.0,101370.0,0.05924542]
[1734180577739,0.73300578,101380.0,101370.0,0.05924542]
[1734180577934,0.25741688,101380.0,101370.0,0.104527]
[1734180578127,0.25741688,101380.0,101370.0,0.104027]
[1734180578328,0.79429486,101380.0,101370.0,1.604027]
[1734180578532,0.61821688,101380.0,101370.0,1.604027]
[1734180579132,0.61821688,101380.0,101370.0,1.604527]
[1734180579532,0.61821688,101380.0,101370.0,1.55110058]
[1734180579841,0.61821688,101380.0,101370.0,1.50178158]
[1734180580143,0.79429486,101380.0,101370.0,1.50128158]
[1734180580840,0.79429486,101380.0,101370.0,0.05059958]
[1734180581340,0.85558394,101380.0,101370.0,0.05059958]
[1734180581538,0.79429486,101380.0,101370.0,0.05059958]
[1734180582348,0.79429486,101380.0,101370.0,0.00128158]
[1734180582636,0.92689486,101380.0,101370.0,0.00128158]
[1734180583139,0.92689486,101380.0,101370.0,0.05059858]
[1734180583336,0.78016321,101380.0,101370.0,0.05059858]
[1734180584134,0.78016321,101380.0,101370.0,0.00128158]
[1734180584631,0.84145229,101380.0,101370.0,0.00128158]
[1734180584834,0.78016321,101380.0,101370.0,0.00128158]
[1734180585942,0.84145229,101380.0,101370.0,0.00128158]
[1734180586842,0.66537431,101380.0,101370.0,0.00128158]
[1734180588750,0.8713526,101380.0,101370.0,0.00128158]
[1734180589540,0.81006352,101380.0,101370.0,0.00128158]
[1734180589741,0.60408523,101380.0,101370.0,0.00128158]
[1734180590147,0.81006352,101380.0,101370.0,0.00128158]
[1734180590348,0.60408523,101380.0,101370.0,0.00128158]
[1734180591048,0.78050116,101380.0,101370.0,0.00128158]
[1734180592645,0.60408523,101380.0,101370.0,0.00128158]
[1734180593756,0.78052539,101380.0,101370.0,0.00128158]
[1734180594255,0.60408523,101380.0,101370.0,0.00128158]
[1734180595155,0.66537431,101380.0,101370.0,0.00128158]
[1734180595556,0.66537431,101380.0,101360.0,0.32594302]
[1734180595754,0.34399464,101370.0,101360.0,0.32594302]
[1734180595950,0.28706972,101370.0,101360.0,0.32594302]
[1734180596147,0.28706972,101370.0,101360.0,0.32544302]
[1734180596657,0.64786972,101370.0,101360.0,0.32544302]
[1734180596956,0.64786972,101370.0,101360.0,0.14797034]
[1734180597160,0.64786972,101370.0,101360.0,0.32594302]
[1734180597462,0.28706972,101370.0,101360.0,0.28204302]
[1734180597753,0.64786972,101370.0,101360.0,0.0005]
[1734180597950,0.47140608,101370.0,101360.0,0.0005]
[1734180598758,0.67738437,101370.0,101360.0,0.0005]
[1734180599158,0.049322,101360.0,101350.0,0.28808676]
[1734180599457,0.4341197,101360.0,101350.0,0.22679768]
[1734180599959,0.4341197,101360.0,101350.0,0.27159768]
[1734180600155,0.4341197,101360.0,101350.0,0.27209768]
[1734180601046,0.4341197,101360.0,101350.0,0.27159768]
[1734180601450,0.37283062,101360.0,101350.0,0.33288676]
[1734180601652,0.19637137,101360.0,101350.0,0.3424123]
[1734180602259,0.19637137,101360.0,101350.0,0.3429123]
[1734180603251,0.19637137,101360.0,101350.0,0.3424123]
[1734180604264,0.19637137,101360.0,101350.0,0.3429123]
[1734180608562,0.25766045,101360.0,101350.0,0.22277268]
[1734180608758,0.64787033,101360.0,101350.0,0.0005]
[1734180608957,0.79593956,101360.0,101350.0,0.0005]
[1734180609364,0.83853956,101360.0,101350.0,0.0005]
[1734180609668,0.66208031,101360.0,101350.0,0.0005]
[1734180610262,0.77714439,101360.0,101350.0,0.0005]
[1734180610464,0.77714421,101360.0,101350.0,0.0005]
[1734180611664,0.78683466,101360.0,101350.0,0.0005]
[1734180612265,0.049327,101350.0,101340.0,0.38772305]
[1734180612464,0.19626584,101350.0,101340.0,0.38772305]
[1734180613266,0.19626584,101350.0,101340.0,0.38822305]
[1734180614370,0.19626584,101350.0,101340.0,0.74852305]
[1734180614569,0.31380271,101350.0,101340.0,0.74852305]
[1734180614765,0.31380271,101350.0,101340.0,0.38772305]
[1734180614967,0.19626584,101350.0,101340.0,0.32643397]
[1734180615166,0.19626584,101350.0,101340.0,1.88822305]
[1734180615768,0.19626584,101350.0,101340.0,2.24902305]
[1734180615972,0.31380207,101350.0,101340.0,2.24902305]
[1734180616267,0.19626584,101350.0,101340.0,2.24852305]
[1734180616467,0.31380194,101350.0,101340.0,2.24852305]
[1734180617276,0.31380194,101350.0,101340.0,2.24902305]
[1734180617772,0.31380254,101350.0,101340.0,2.24902305]
[1734180618163,0.31380254,101350.0,101340.0,2.24852305]
[1734180618365,0.19626584,101350.0,101340.0,2.24852305]
[1734180618972,0.31380486,101350.0,101340.0,2.24852305]
[1734180619165,0.31380486,101350.0,101340.0,2.24902305]
[1734180619567,0.19626584,101350.0,101340.0,2.24902305]
[1734180622165,0.19626584,101350.0,101340.0,2.24852305]
[1734180622677,0.19626584,101350.0,101340.0,1.88772305]
[1734180623066,0.19626584,101350.0,101340.0,2.24852305]
[1734180623466,0.19626584,101350.0,101340.0,1.82643397]
[1734180624579,0.25755492,101350.0,101340.0,1.82643397]
[1734180624970,0.19626584,101350.0,101340.0,1.82643397]
[1734180626578,0.37261882,101350.0,101340.0,1.82643397]
[1734180627171,0.19626584,101350.0,101340.0,1.82693397]
[1734180627477,0.37261882,101350.0,101340.0,1.82693397]
[1734180628574,0.19626584,101350.0,101340.0,1.82693397]
[1734180629373,0.19626584,101350.0,101340.0,1.82643397]
[1734180632983,0.19626584,101350.0,101340.0,2.24852305]
[1734180633172,0.19626584,101350.0,101340.0,1.82643397]
[1734180633378,0.37261882,101350.0,101340.0,1.88772305]
[1734180633685,0.4339079,101350.0,101340.0,0.23803397]
[1734180633874,0.28696906,101350.0,101340.0,0.23803397]
[1734180634384,0.64776906,101350.0,101340.0,0.23803397]
[1734180634677,0.43404121,101350.0,101340.0,0.23803397]
[1734180634882,0.64776906,101350.0,101340.0,0.23803397]
[1734180635080,0.43403897,101350.0,101340.0,0.23803397]
[1734180635273,0.28696906,101350.0,101340.0,0.23803397]
[1734180636167,0.64776906,101350.0,101340.0,0.1789521]
[1734180636574,0.73096906,101350.0,101340.0,0.1789521]
[1734180636775,0.77476906,101350.0,101340.0,0.1789521]
[1734180639285,0.59841608,101350.0,101340.0,0.17747268]
[1734180639477,0.77496484,101350.0,101340.0,0.17747268]
[1734180639681,0.049332,101340.0,101330.0,0.93884921]
[1734180639981,0.19645513,101340.0,101330.0,0.93884921]
[1734180640178,0.37300389,101340.0,101330.0,0.93934921]
[1734180640384,0.19645513,101340.0,101330.0,0.93934921]
[1734180641181,0.19645513,101340.0,101330.0,0.93884921]
[1734180641684,0.19645513,101340.0,101330.0,0.93888864]
[1734180642280,0.19645513,101340.0,101330.0,0.93938864]
[1734180642777,0.19645513,101340.0,101330.0,0.76187653]
[1734180643177,0.19645513,101340.0,101330.0,0.76137653]
[1734180643677,0.19645513,101340.0,101330.0,0.93887533]
[1734180643983,0.19645513,101340.0,101330.0,0.76137653]
[1734180644182,0.19645513,101340.0,101330.0,0.76187653]
[1734180645179,0.19645513,101340.0,101330.0,0.76137653]
[1734180646091,0.19645513,101340.0,101330.0,0.40057653]
[1734180646286,0.19645513,101340.0,101330.0,0.76187653]
[1734180646786,0.14712313,101340.0,101330.0,0.76187653]
[1734180646988,0.26480375,101340.0,101330.0,1.05744038]
[1734180647291,0.26480375,101340.0,101330.0,1.23627509]
[1734180647490,0.26480375,101340.0,101330.0,1.27867509]
[1734180647679,0.26480945,101340.0,101330.0,1.27751989]
[1734180648197,0.26480945,101340.0,101330.0,1.05614038]
[1734180648485,0.14712313,101340.0,101330.0,1.05614038]
[1734180648685,0.26480864,101340.0,101330.0,1.05614038]
[1734180648892,0.26480864,101340.0,101330.0,0.9948513]
[1734180649082,0.14712313,101340.0,101330.0,0.76057653]
[1734180649386,0.14712313,101340.0,101330.0,1.05614038]
[1734180649685,0.14710678,101340.0,101330.0,1.05660782]
[1734180650283,0.14710678,101340.0,101330.0,0.76078428]
[1734180650485,0.14710678,101340.0,101330.0,1.05660782]
[1734180650790,0.14710678,101340.0,101330.0,0.76078428]
[1734180650990,0.14710678,101340.0,101330.0,1.05660782]
[1734180651781,0.26481504,101340.0,101330.0,1.27876602]
[1734180652186,0.14710678,101340.0,101330.0,1.27876602]
[1734180654987,0.14710678,101340.0,101330.0,0.91796602]
[1734180655191,0.14710678,101340.0,101330.0,1.27876602]
[1734180655686,0.14710678,101340.0,101330.0,1.04210719]
[1734180655989,0.14710678,101340.0,101330.0,1.27880998]
[1734180656296,0.14710678,101340.0,101330.0,1.04210719]
[1734180656990,0.19643878,101340.0,101330.0,0.98081811]
[1734180657291,0.19643878,101340.0,101330.0,0.75865991]
[1734180657689,0.19643878,101340.0,101330.0,0.69954823]
[1734180659280,0.19643878,101340.0,101330.0,0.76033731]
[1734180659898,0.14710678,101340.0,101330.0,0.76033731]
[1734180660288,0.14710678,101340.0,101330.0,1.27863441]
[1734180660487,0.14710678,101340.0,101330.0,1.2786367]
[1734180660795,0.14710678,101340.0,101330.0,1.05616085]
[1734180661189,0.14710678,101340.0,101330.0,1.27836668]
[1734180661994,0.14710678,101340.0,101330.0,1.04165482]
[1734180662189,0.26493254,101340.0,101330.0,1.04165482]
[1734180663100,0.26493254,101340.0,101330.0,1.1029439]
[1734180663409,0.11782576,101340.0,101330.0,1.39664307]
[1734180663585,0.11782576,101340.0,101330.0,2.89664307]
[1734180664199,0.20619394,101340.0,101330.0,2.89664307]
[1734180664702,0.08836833,101340.0,101330.0,2.66210861]
[1734180664897,0.08836833,101340.0,101330.0,2.60081953]
[1734180665091,0.20619409,101340.0,101330.0,2.60081953]
[1734180665493,0.08836833,101340.0,101330.0,2.60081953]
[1734180665993,0.20619409,101340.0,101330.0,2.60081953]
[1734180666203,0.08836833,101340.0,101330.0,2.60081953]
[1734180666390,0.20619409,101340.0,101330.0,2.89655073]
[1734180666696,0.08836833,101340.0,101330.0,2.89655073]
[1734180667096,0.20619409,101340.0,101330.0,2.54156248]
[1734180667897,0.08836833,101340.0,101330.0,2.54156248]
[1734180668204,0.08836833,101340.0,101330.0,2.89655073]
[1734180668397,0.20619409,101340.0,101330.0,2.54156248]
[1734180668700,0.20619409,101340.0,101330.0,2.83526165]
[1734180668905,0.20619409,101340.0,101330.0,2.89655073]
[1734180669208,0.08836833,101340.0,101330.0,2.89655073]
[1734180670992,0.08836833,101340.0,101330.0,2.95783981]
[1734180671403,0.08836833,101340.0,101330.0,2.89655073]
[1734180671597,0.08836833,101340.0,101330.0,2.95783981]
[1734180672201,0.08836833,101340.0,101330.0,1.45783981]
[1734180672708,0.08836833,101340.0,101330.0,2.95783981]
[1734180673223,0.10441994,101350.0,101340.0,0.049332]
[1734180673508,0.06102995,101350.0,101340.0,1.19552454]
[1734180673800,0.14718693,101360.0,101350.0,0.049327]
[1734180674102,0.14718693,101360.0,101350.0,0.98686742]
[1734180675103,8.015e-05,101360.0,101350.0,0.80949788]
[1734180675998,8.015e-05,101360.0,101350.0,0.7482088]
[1734180679006,8.015e-05,101360.0,101350.0,0.28581972]
[1734180679201,0.23308693,101360.0,101350.0,0.88516852]
[1734180679406,0.23308693,101360.0,101350.0,0.6486758]
[1734180679608,0.23308693,101360.0,101350.0,0.88516852]
[1734180680001,0.23308693,101360.0,101350.0,0.6486758]
[1734180680200,0.23358693,101360.0,101350.0,0.6486758]
[1734180680397,0.23358693,101360.0,101350.0,0.65826926]
[1734180681611,0.23358693,101360.0,101350.0,0.29746926]
[1734180681805,0.23358693,101360.0,101350.0,0.65826926]
[1734180682009,0.28290893,101360.0,101350.0,0.29746926]
[1734180682509,0.34419801,101360.0,101350.0,0.23618018]
[1734180682910,0.52072615,101360.0,101350.0,0.05892046]
[1734180683611,0.37361937,101360.0,101350.0,0.05892046]
[1734180683910,0.73441937,101360.0,101350.0,0.049327]
[1734180689521,0.67313029,101360.0,101350.0,0.049327]
[1734180690918,0.73441937,101360.0,101350.0,0.049327]
[1734180694914,0.37361937,101360.0,101350.0,0.049327]
[1734180695222,0.31233029,101360.0,101350.0,0.049327]
[1734180695425,0.41016057,101360.0,101350.0,0.6486758]
[1734180695727,0.23363243,101360.0,101350.0,0.6486758]
[1734180696017,0.23363243,101360.0,101350.0,2.1486758]
[1734180696319,0.23313243,101360.0,101350.0,2.1486758]
[1734180697217,0.32376057,101360.0,101350.0,2.1486758]
[1734180697426,0.14723243,101360.0,101350.0,2.38516852]
[1734180697617,0.14723243,101360.0,101350.0,2.42696852]
[1734180699221,0.14723243,101360.0,101350.0,2.2497088]
[1734180700018,0.14723243,101360.0,101350.0,0.56625391]
[1734180700412,0.19655443,101360.0,101350.0,0.32976119]
[1734180701216,0.14723243,101360.0,101350.0,0.32976119]
[1734180701416,0.14723243,101360.0,101350.0,0.69056119]
[1734180701615,0.14723243,101360.0,101350.0,0.92705391]
[1734180704916,8.015e-05,101360.0,101350.0,1.28395468]
[1734180705126,8.015e-05,101360.0,101350.0,1.09707199]
[1734180705629,8.015e-05,101360.0,101350.0,1.39707199]
[1734180705830,8.015e-05,101360.0,101350.0,1.75206024]
[1734180706025,8.015e-05,101360.0,101350.0,3.25206024]
[1734180707214,8.015e-05,101360.0,101350.0,2.89707199]
[1734180709328,8.015e-05,101360.0,101350.0,3.06980702]
[1734180709529,0.0005,101370.0,101350.0,3.06980702]
[1734180709727,0.0005,101370.0,101360.0,0.91316446]
[1734180709931,0.0005,101370.0,101360.0,1.20878393]
[1734180710333,0.14715228,101390.0,101380.0,0.049313]
[1734180710625,0.14715228,101390.0,101380.0,0.53269116]
[1734180711623,0.14715228,101390.0,101380.0,2.07279116]
[1734180712927,0.14715228,101390.0,101380.0,2.03269116]
[1734180713132,0.93540617,101400.0,101380.0,1.97140208]
[1734180713332,0.88609917,101400.0,101380.0,0.52071208]
[1734180714126,0.70957103,101400.0,101390.0,0.06128908]
[1734180714625,0.52529917,101400.0,101390.0,0.06128908]
[1734180714827,0.88609917,101400.0,101390.0,0.06128908]
[1734180715233,0.70957103,101400.0,101390.0,0.11059708]
[1734180715439,0.88609917,101400.0,101390.0,0.11059708]
[1734180715736,0.88583328,101400.0,101390.0,0.06128908]
[1734180716035,0.88583328,101400.0,101390.0,0.11059708]
[1734180716036,0.70930514,101400.0,101390.0,0.11059708]
[1734180717037,0.70930514,101400.0,101390.0,0.049308]
[1734180717434,0.88583328,101400.0,101390.0,0.049308]
[1734180719252,0.8245442,101400.0,101390.0,0.11059708]
[1734180719453,0.64801606,101400.0,101390.0,0.11059708]
[1734180719843,0.8245442,101400.0,101390.0,0.11059708]
[1734180720044,0.63859039,101400.0,101390.0,0.11059708]
[1734180722053,0.81511853,101400.0,101390.0,0.11059708]
[1734180722261,0.14688639,101400.0,101390.0,0.17188616]
[1734180722445,0.62712814,101410.0,101390.0,0.21298616]
[1734180722446,0.77401453,101410.0,101390.0,0.21298616]
[1734180722646,0.77401453,101410.0,101400.0,0.17188116]
[1734180723056,0.77401453,101410.0,101400.0,0.11059208]
[1734180723558,0.59748639,101410.0,101400.0,0.11059208]
[1734180723854,0.65877547,101410.0,101400.0,0.11059208]
[1734180724058,0.59748639,101410.0,101400.0,0.11059208]
[1734180725459,0.77401453,101410.0,101400.0,0.11059208]
[1734180726162,0.83530361,101410.0,101400.0,0.06128908]
[1734180727061,0.83530361,101410.0,101380.0,0.54740316]
[1734180727255,0.049308,101390.0,101380.0,0.23591516]
[1734180727454,0.049308,101390.0,101380.0,0.12013682]
[1734180727663,0.049308,101390.0,101380.0,0.48093682]
[1734180727957,0.049308,101390.0,101380.0,0.5422259]
[1734180728167,0.049308,101390.0,101380.0,0.1814259]
[1734180728661,0.049308,101390.0,101380.0,0.5422259]
[1734180729454,0.049308,101390.0,101380.0,0.12013682]
[1734180731152,0.55699439,101390.0,101380.0,0.12013682]
[1734180731367,0.19619439,101390.0,101380.0,0.12013682]
[1734180731964,0.049308,101390.0,101380.0,0.12013682]
[1734180732158,0.19619439,101390.0,101380.0,0.12013682]
[1734180733162,0.19619439,101390.0,101380.0,1.79720424]
[1734180733463,0.25748347,101390.0,101380.0,0.18660316]
[1734180733663,0.049313,101380.0,101370.0,0.2876725]
[1734180733871,0.16695552,101380.0,101370.0,0.2876725]
[1734180734059,0.16695552,101380.0,101370.0,2.02384672]
[1734180734263,0.31384191,101380.0,101370.0,2.02434672]
[1734180734972,0.16695552,101380.0,101370.0,2.02434672]
[1734180735170,0.31384191,101380.0,101370.0,2.02434672]
[1734180735373,0.31384191,101380.0,101370.0,2.02384672]
[1734180736259,0.31384191,101380.0,101370.0,2.03388942]
[1734180737265,0.31384191,101380.0,101370.0,2.03338942]
[1734180737665,0.19619939,101380.0,101370.0,2.03338942]
[1734180738262,0.19619939,101380.0,101370.0,2.03388942]
[1734180739564,0.31392178,101380.0,101370.0,2.03388942]
[1734180740163,0.19619939,101380.0,101370.0,2.03388942]
[1734180740369,0.31391727,101380.0,101370.0,2.03388942]
[1734180740970,0.19619939,101380.0,101370.0,2.03388942]
[1734180741371,0.31391106,101380.0,101370.0,2.03388942]
[1734180741876,0.19619939,101380.0,101370.0,2.03388942]
[1734180744676,0.19619939,101380.0,101370.0,1.7977152]
[1734180744878,0.19619939,101380.0,101370.0,2.03388942]
[1734180745076,0.19619939,101380.0,101370.0,1.7977152]
[1734180746075,0.19643597,101380.0,101370.0,1.79792317]
[1734180746870,0.31412894,101380.0,101370.0,1.79792317]
[1734180749868,0.19643597,101380.0,101370.0,1.79792317]
[1734180750387,0.31411601,101380.0,101370.0,1.79792317]
[1734180752285,0.31411375,101380.0,101370.0,1.79792317]
[1734180752676,0.19643597,101380.0,101370.0,1.79792317]
[1734180754875,0.25772505,101380.0,101370.0,0.23663409]
[1734180755391,0.25772505,101380.0,101370.0,0.23613409]
[1734180756182,0.25772505,101380.0,101370.0,0.29742317]
[1734180756380,0.25772505,101380.0,101370.0,0.53379036]
[1734180757090,0.19643597,101380.0,101370.0,0.53379036]
[1734180757277,0.37298354,101380.0,101370.0,0.53379036]
[1734180762285,0.37298354,101380.0,101370.0,2.03379036]
[1734180763184,0.22586057,101380.0,101370.0,2.03379036]
[1734180764085,0.37328716,101380.0,101370.0,1.85651497]
[1734180764588,0.22586057,101380.0,101370.0,1.85651497]
[1734180765083,0.37330255,101380.0,101370.0,1.85651497]
[1734180765482,0.22586057,101380.0,101370.0,1.85651497]
[1734180765682,0.37330964,101380.0,101370.0,1.85651497]
[1734180766186,0.22586057,101380.0,101370.0,1.85651497]
[1734180767884,0.22586057,101380.0,101370.0,2.03407403]
[1734180768085,0.22586057,101380.0,101370.0,1.85651497]
[1734180777494,0.17654757,101380.0,101370.0,2.51277396]
[1734180777695,0.32401812,101380.0,101370.0,2.74703725]
[1734180778000,0.32401812,101380.0,101370.0,2.44938098]
[1734180778195,0.14747055,101380.0,101370.0,2.74738161]
[1734180778695,0.14747055,101380.0,101370.0,2.74726213]
[1734180779197,0.14747055,101380.0,101370.0,2.51055058]
[1734180779892,0.14747055,101380.0,101370.0,2.51310153]
[1734180780190,0.14747055,101380.0,101370.0,1.01310153]
[1734180781597,0.14747055,101380.0,101370.0,0.71764254]
[1734180784998,0.14747055,101380.0,101370.0,0.35684254]
[1734180785200,0.25807263,101380.0,101370.0,0.29555346]
[1734180785396,0.64794965,101380.0,101370.0,0.4730547]
[1734180785596,0.70923873,101380.0,101370.0,0.18704394]
[1734180785795,0.73224965,101380.0,101370.0,0.18704394]
[1734180785996,0.55570208,101380.0,101370.0,0.18704394]
[1734180786195,0.55570208,101380.0,101370.0,0.17750124]
[1734180786596,0.73256616,101380.0,101370.0,0.17750124]
[1734180786999,0.79385524,101380.0,101370.0,0.17750124]
[1734180787201,0.049318,101370.0,101360.0,0.47380643]
[1734180787399,0.69622091,101370.0,101360.0,0.47330643]
[1734180787602,0.64826284,101370.0,101360.0,0.23661167]
[1734180788595,0.58697376,101370.0,101360.0,0.29840075]
[1734180789099,0.64826284,101370.0,101360.0,0.29840075]
[1734180789509,0.64826284,101370.0,101360.0,0.29790075]
[1734180790495,0.64826284,101370.0,101360.0,0.29840075]
[1734180790713,0.79557677,101370.0,101360.0,0.29840075]
[1734180791398,0.79557677,101370.0,101360.0,0.29790075]
[1734180792507,0.79557677,101370.0,101360.0,0.29840075]
[1734180793306,0.61872101,101370.0,101360.0,0.23711167]
[1734180793501,0.65882101,101370.0,101360.0,0.23661167]
[1734180794403,0.65882101,101370.0,101360.0,0.23711167]
[1734180795500,0.65882101,101370.0,101360.0,0.23661167]
[1734180796422,0.65882101,101370.0,101360.0,0.23711167]
[1734180796801,0.65882101,101370.0,101360.0,0.05963655]
[1734180797008,0.83567677,101370.0,101360.0,0.05963655]
[1734180797398,0.83567677,101370.0,101360.0,0.05913655]
[1734180798603,0.83567677,101370.0,101360.0,0.05963655]
[1734180799514,0.83567677,101370.0,101360.0,0.05913655]
[1734180799707,0.83567677,101370.0,101360.0,0.00981755]
[1734180799913,0.63904484,101370.0,101350.0,1.72680012]
[1734180800211,0.38441859,101360.0,101350.0,1.72680012]
[1734180800410,0.31438278,101360.0,101350.0,1.7880892]
[1734180800613,0.19657799,101360.0,101350.0,1.7880892]
[1734180801309,0.31437031,101360.0,101350.0,1.7880892]
[1734180802506,0.31437031,101360.0,101350.0,1.7885892]
[1734180803513,0.19657799,101360.0,101350.0,1.7880892]
[1734180804010,0.19657799,101360.0,101350.0,1.62043753]
[1734180804404,0.19657799,101360.0,101350.0,1.62093753]
[1734180805509,0.19657799,101360.0,101350.0,1.62043753]
[1734180806413,0.19657799,101360.0,101350.0,1.62093753]
[1734180807516,0.19657799,101360.0,101350.0,1.62043753]
[1734180807708,0.19657799,101360.0,101350.0,1.55914845]
[1734180807913,0.19657799,101360.0,101350.0,1.62043753]
[1734180808518,0.19657799,101360.0,101350.0,1.62093753]
[1734180809412,0.19657799,101360.0,101350.0,1.62043753]
[1734180810416,0.19657799,101360.0,101350.0,1.62093753]
[1734180811523,0.19657799,101360.0,101350.0,1.62043753]
[1734180812521,0.19657799,101360.0,101350.0,1.62093753]
[1734180813419,0.70955592,101360.0,101340.0,0.73462476]
[1734180813619,0.37578788,101350.0,101340.0,0.28602476]
[1734180813923,0.43478951,101350.0,101340.0,0.04933]
[1734180814527,0.28747184,101350.0,101340.0,0.04933]
[1734180814922,0.32907184,101350.0,101340.0,0.04933]
[1734180816421,0.32907184,101350.0,101340.0,0.04983]
[1734180816816,0.68987184,101350.0,101340.0,0.0005]
[1734180817426,0.049332,101340.0,101330.0,1.61069553]
[1734180817619,0.19658887,101340.0,101330.0,1.62027672]
[1734180818822,0.25787795,101340.0,101330.0,1.62027672]
[1734180820020,0.19658887,101340.0,101330.0,1.62027672]
[1734180821227,0.25787795,101340.0,101330.0,1.62027672]
[1734180821428,0.19658887,101340.0,101330.0,1.62027672]
[1734180823024,0.25787795,101340.0,101330.0,1.62027672]
[1734180823725,0.19658887,101340.0,101330.0,1.62027672]
[1734180825831,0.31426412,101340.0,101330.0,1.62027672]